fUSD/lending_fUSD_20240726
["ID","MTS","AMOUNT","RATE_DAILY","PERIOD"]
[333234412,1721958641242,-502.19909076,0.00010999,2]
[333234414,1721958641251,-508.34720303,0.00010999,2]
[333234416,1721958641260,-506.52468979,0.00010999,2]
[333234417,1721958641269,-505.58409211,0.00010999,2]
[333234418,1721958641279,-504.96325386,0.00010999,2]
[333234420,1721958641288,-504.56451237,0.00010999,2]
[333234421,1721958641297,-534.79031119,0.00010999,2]
[333234422,1721958641306,-502.8332717,0.00010999,2]
[333234423,1721958641316,-502.86846941,0.00010999,2]
[333234424,1721958641325,-563.08502054,0.00010999,2]
[333234425,1721958641334,-505.79514967,0.00010999,2]
[333234433,1721958641546,-259.79364688,0.00010999,2]
[333234435,1721958641556,-504.02488325,0.00010999,2]
[333234437,1721958641565,-503.48211395,0.00010999,2]
[333234439,1721958641574,-506.42509227,0.00010999,2]
[333234441,1721958641583,-508.07780991,0.00010999,2]
[333234443,1721958641593,-505.26913301,0.00010999,2]
[333234445,1721958641602,-508.91412545,0.00010999,2]
[333234447,1721958641611,-502.42275611,0.00010999,2]
[333234449,1721958641620,-509.95657459,0.00010999,2]
[333234450,1721958641630,-504.30237476,0.00010999,2]
[333234451,1721958641639,-505.03449361,0.00010999,2]
[333234452,1721958641649,-512.6086818,0.00010999,2]
[333234453,1721958641658,-502.11667343,0.00010999,2]
[333234454,1721958641667,-505.70706767,0.00010999,2]
[333234455,1721958641677,-504.40887397,0.00010999,2]
[333234456,1721958641686,-508.68439031,0.00010999,2]
[333234457,1721958641696,-500.0,0.00010999,2]
[333234458,1721958641705,-189.23809635,0.00010999,2]
[333234459,1721958641714,-502.47001742,0.00010999,2]
[333234460,1721958641724,-1798.92,0.00010999,2]
[333234461,1721958641736,-500.0,0.00010999,2]
[333234462,1721958641745,-500.0,0.00010999,2]
[333234463,1721958641755,-301.48841504,0.00010999,2]
[333234464,1721958641764,-503.65961337,0.00010999,2]
[333234466,1721958641774,-3.42026708,0.00010999,2]
[333234468,1721958641787,-501.89965621,0.00010999,2]
[333234470,1721958641796,-45.56034379,0.00010999,2]
[333234536,1721958643196,-488.26951899,0.00010999,2]
[333234537,1721958643206,-501.97173546,0.00010999,2]
[333234538,1721958643216,-502.8847109,0.00010999,2]
[333234539,1721958643226,-502.88431936,0.00010999,2]
[333234540,1721958643240,-500.0,0.00010999,2]
[333234541,1721958643250,-502.73752668,0.00010999,2]
[333234542,1721958643259,-504.23651326,0.00010999,2]
[333234543,1721958643268,-503.45795952,0.00010999,2]
[333234544,1721958643279,-515.6658046,0.00010999,2]
[333234545,1721958643289,-507.57024153,0.00010999,2]
[333234546,1721958643299,-169.46221674,0.00010999,2]
[333234547,1721958643308,-502.46365875,0.00010999,2]
[333234548,1721958643317,-506.18927949,0.00010999,2]
[333234549,1721958643326,-180.88000894,0.00010999,2]
[333234550,1721958643336,-274.60566683,0.00010999,2]
[333234551,1721958643387,-107.32592714,0.00010999,2]
[333234552,1721958643397,-503.45981181,0.00010999,2]
[333234553,1721958643407,-506.88159865,0.00010999,2]
[333234554,1721958643417,-501.98815375,0.00010999,2]
[333234555,1721958643427,-2108.19,0.00010999,2]
[333234556,1721958643439,-2108.19,0.00010999,2]
[333234557,1721958643450,-2108.19,0.00010999,2]
[333234558,1721958643460,-774.92481104,0.00010999,2]
[333234610,1721958646347,-1333.26518896,0.00010999,2]
[333234612,1721958646357,-2108.19,0.00010999,2]
[333234614,1721958646367,-2108.19,0.00010999,2]
[333234617,1721958646377,-2108.19,0.00010999,2]
[333234620,1721958646386,-2108.19,0.00010999,2]
[333234621,1721958646395,-502.0085767,0.00010999,2]
[333234624,1721958646405,-2108.19,0.00010999,2]
[333234626,1721958646414,-2108.19,0.00010999,2]
[333234627,1721958646423,-2108.19,0.00010999,2]
[333234629,1721958646433,-2108.19,0.00010999,2]
[333234631,1721958646446,-2108.19,0.00010999,2]
[333234633,1721958646456,-534.52358367,0.00010999,2]
[333234634,1721958646466,-2108.19,0.00010999,2]
[333234636,1721958646475,-2108.19,0.00010999,2]
[333234638,1721958646488,-2108.19,0.00010999,2]
[333234639,1721958646498,-2108.19,0.00010999,2]
[333234641,1721958646507,-2108.19,0.00010999,2]
[333234643,1721958646518,-2108.19,0.00010999,2]
[333234644,1721958646527,-2108.19,0.00010999,2]
[333234646,1721958646536,-2108.19,0.00010999,2]
[333234648,1721958646546,-2108.19,0.00010999,2]
[333234649,1721958646555,-2108.19,0.00010999,2]
[333234651,1721958646564,-2108.37889389,0.00010999,2]
[333234653,1721958646573,-504.11230279,0.00010999,2]
[333234655,1721958646583,-502.88531734,0.00010999,2]
[333234656,1721958646592,-504.95581833,0.00010999,2]
[333234658,1721958646602,-505.68059653,0.00010999,2]
[333234660,1721958646611,-500.0,0.00010999,2]
[333234661,1721958646620,-164.92674592,0.00010999,2]
[333234662,1721958646629,-503.09763525,0.00010999,2]
[333234663,1721958646638,-503.2379815,0.00010999,2]
[333234664,1721958646647,-500.95848717,0.00010999,2]
[333234665,1721958646656,-503.25852955,0.00010999,2]
[333234667,1721958646665,-500.0,0.00010999,2]
[333234668,1721958646674,-414.27994463,0.00010999,2]
[333234669,1721958646683,-249.69096619,0.00010999,2]
[333234670,1721958646692,-502.36011814,0.00010999,2]
[333234671,1721958646701,-170.81540408,0.00010999,2]
[333234672,1721958646710,-507.00341481,0.00010999,2]
[333234673,1721958646719,-520.02366422,0.00010999,2]
[333234674,1721958646728,-505.54939952,0.00010999,2]
[333234675,1721958646740,-510.27250005,0.00010999,2]
[333234676,1721958646749,-512.32174027,0.00010999,2]
[333234677,1721958646759,-505.86291929,0.00010999,2]
[333234678,1721958646768,-585.92347713,0.00010999,2]
[333234679,1721958646778,-570.9391,0.00010999,2]
[333234680,1721958646787,-501.1282445,0.00010999,2]
[333234681,1721958646795,-177.08385822,0.00010999,2]
[333234682,1721958646805,-500.0,0.00010999,2]
[333234683,1721958646814,-544.57074869,0.00010999,2]
[333234684,1721958646823,-500.0,0.00010999,2]
[333234685,1721958646831,-500.0,0.00010999,2]
[333234686,1721958646840,-500.0,0.00010999,2]
[333234687,1721958646849,-500.0,0.00010999,2]
[333234688,1721958646858,-500.0,0.00010999,2]
[333234689,1721958646867,-500.0,0.00010999,2]
[333234690,1721958646876,-453.31767065,0.00010999,2]
[333234691,1721958646885,-308.2885339,0.00010999,2]
[333234692,1721958646895,-399.61415693,0.00010999,2]
[333234693,1721958646904,-500.0,0.00010999,2]
[333234694,1721958646913,-320.02121334,0.00010999,2]
[333234695,1721958646923,-500.0,0.00010999,2]
[333234696,1721958646932,-500.0,0.00010999,2]
[333234697,1721958646942,-418.6153,0.00010999,2]
[333234698,1721958646952,-500.0,0.00010999,2]
[333234699,1721958646962,-351.25872616,0.00010999,2]
[333234700,1721958646972,-500.0,0.00010999,2]
[333234701,1721958646983,-500.0,0.00010999,2]
[333234702,1721958646992,-490.8291,0.00010999,2]
[333234703,1721958647001,-500.0,0.00010999,2]
[333234704,1721958647010,-500.0,0.00010999,2]
[333234705,1721958647022,-488.12511624,0.00010999,2]
[333234706,1721958647031,-245.98701243,0.00010999,2]
[333234707,1721958647041,-473.1155,0.00010999,2]
[333234708,1721958647051,-267.0607234,0.00010999,2]
[333234709,1721958647060,-40942.16617894,0.00011,2]
[333234710,1721958647099,-739.2528329,0.00011,2]
[333234711,1721958647110,-8209.81513864,0.00011,2]
[333234712,1721958647121,-473.89259586,0.00011,2]
[333234713,1721958647148,-422.91126348,0.00011,2]
[333234714,1721958647584,-19725.48396326,0.00011,2]
[333234715,1721958647596,-7834.78375231,0.00011,2]
[333234716,1721958647609,-1592.51588198,0.00011,2]
[333234718,1721959832314,-651.76,8.219e-05,2]
[333234719,1721959832323,-300.0,9.651e-05,2]
[333234720,1721959832333,-66.26464996,9.652e-05,2]
[333234722,1721959832345,-2300.0,9.652e-05,2]
[333234731,1721959832546,-14997.80535004,9.652e-05,2]
[333234732,1721959832556,-250.0,9.733e-05,2]
[333234733,1721959832565,-172.86,9.814e-05,2]
[333234734,1721959832574,-1000.0,9.843e-05,2]
[333234735,1721959832584,-200.0,9.9e-05,3]
[333234736,1721959832594,-286.18,0.0001,2]
[333234737,1721959832603,-340.81664996,0.0001,3]
[333234738,1721959832616,-734.6075021,0.0001,3]
[333234739,1721959832629,-1596.67902936,0.0001,3]
[333234740,1721959832639,-500.0,0.0001,3]
[333234741,1721959832648,-499.99,0.000101,2]
[333234742,1721959832658,-700.0,0.000101,3]
[333234743,1721959832668,-1000.0,0.000102,3]
[333234744,1721959832677,-1300.0,0.000103,3]
[333234745,1721959832687,-13302.98738609,0.000104,2]
[333234746,1721959832699,-345.5,0.000104,2]
[333234747,1721959832711,-1793.23431391,0.000104,2]
[333234748,1721959832720,-1259.3249,0.000104,2]
[333234749,1721959832729,-200.0,0.000104,3]
[333234750,1721959832739,-651.76,0.00010462,2]
[333234751,1721959832749,-200.0,0.000105,3]
[333234752,1721959832758,-12803.54475498,0.000105,2]
[333234753,1721959832768,-200.0,0.000106,3]
[333234754,1721959832781,-420.0,0.00010616,2]
[333234755,1721959832791,-167.1245,0.000107,2]
[333234756,1721959832801,-259.472,0.000107,2]
[333234757,1721959832811,-200.0,0.000107,3]
[333234758,1721959832822,-2500.0,0.00010797,2]
[333234759,1721959832832,-13276.06767862,0.000108,2]
[333234760,1721959832844,-10444.68842138,0.000108,2]
[333234761,1721959832854,-98603.6202,0.000108,2]
[333234762,1721959832864,-833.0,0.000108,3]
[333234763,1721959832873,-3978.67321391,0.0001088,2]
[333234764,1721959832882,-4278.4735332,0.00010897,2]
[333234765,1721959832894,-1147.32716098,0.00010897,2]
[333234766,1721959832909,-4374.41757965,0.00010897,2]
[333234767,1721959832920,-539.12992939,0.00010897,2]
[333234768,1721959832931,-7526.18825408,0.00010897,2]
[333234776,1721959838553,-9551.3770682,0.00010897,2]
[333234777,1721959838565,-29419.7076725,0.00010897,2]
[333234778,1721959838576,-37541.70388048,0.00010897,2]
[333234779,1721959838587,-8559.29733584,0.00010897,2]
[333234780,1721959838598,-15090.96513034,0.00010897,2]
[333234781,1721959838610,-11432.05651503,0.00010897,2]
[333234782,1721959838620,-361.36140716,0.00010897,2]
[333234783,1721959838631,-523.7503917,0.00010897,2]
[333234784,1721959838809,-259.62161476,0.00010897,2]
[333234785,1721959838821,-4470.56889542,0.00010897,2]
[333234786,1721959838834,-3830.16113127,0.00010897,2]
[333234787,1721959838844,-14172.10441048,0.00010899,2]
[333234788,1721959838853,-14172.10441044,0.00010899,2]
[333234789,1721959838862,-14172.10441044,0.00010899,2]
[333234790,1721959838872,-14172.10441044,0.00010899,2]
[333234791,1721959838882,-14172.10441044,0.00010899,2]
[333234792,1721959838896,-520.8143,0.00010945,2]
[333234793,1721959838905,-250.0,0.00010959,2]
[333234794,1721959838915,-823.69,0.00010959,2]
[333234795,1721959838925,-359.60486738,0.00010998,2]
[333234796,1721959838935,-531.63713108,0.00010998,2]
[333234797,1721959838945,-576.54569062,0.00010998,2]
[333234798,1721959838956,-558.35861902,0.00010998,2]
[333234799,1721959838966,-500.0,0.00010998,2]
[333234800,1721959838975,-1723.97,0.00010998,2]
[333234801,1721959838985,-2640.24119162,0.00010999,2]
[333234802,1721959838994,-516.61429921,0.00010999,2]
[333234803,1721959839004,-500.0,0.00010999,2]
[333234804,1721959839014,-239.82561438,0.00010999,2]
[333234805,1721959839023,-500.0,0.00010999,2]
[333234806,1721959839032,-167.03242614,0.00010999,2]
[333234807,1721959839041,-579.00830994,0.00010999,2]
[333234808,1721959839051,-579.58,0.00010999,2]
[333234809,1721959839060,-511.2807364,0.00010999,2]
[333234810,1721959839069,-497.60720932,0.00010999,2]
[333234812,1721959839079,-517.37074679,0.00010999,2]
[333234813,1721959839089,-504.16541466,0.00010999,2]
[333234815,1721959839098,-279.003193,0.00010999,2]
[333234817,1721959839108,-512.77096858,0.00010999,2]
[333234819,1721959839118,-505.58667963,0.00010999,2]
[333234821,1721959839127,-279.003193,0.00010999,2]
[333234823,1721959839137,-505.63353881,0.00010999,2]
[333234825,1721959839147,-523.6932215,0.00010999,2]
[333234826,1721959839156,-511.34066443,0.00010999,2]
[333234828,1721959839165,-507.22299755,0.00010999,2]
[333234830,1721959839175,-507.73728883,0.00010999,2]
[333234831,1721959839184,-885.41,0.00010999,2]
[333234832,1721959839193,-885.41,0.00010999,2]
[333234833,1721959839202,-885.41,0.00010999,2]
[333234834,1721959839211,-885.41,0.00010999,2]
[333234835,1721959839221,-885.41,0.00010999,2]
[333234836,1721959839232,-885.41,0.00010999,2]
[333234837,1721959839242,-885.41,0.00010999,2]
[333234838,1721959839251,-885.41,0.00010999,2]
[333234839,1721959839260,-885.41,0.00010999,2]
[333234840,1721959839269,-885.41,0.00010999,2]
[333234841,1721959839278,-227.32783245,0.00010999,2]
[333234842,1721959839287,-885.41,0.00010999,2]
[333234843,1721959839297,-885.41,0.00010999,2]
[333234844,1721959839306,-885.41,0.00010999,2]
[333234845,1721959839315,-505.1517206,0.00010999,2]
[333234846,1721959839325,-885.41,0.00010999,2]
[333234847,1721959839335,-885.41,0.00010999,2]
[333234848,1721959839346,-885.41,0.00010999,2]
[333234849,1721959839355,-885.41,0.00010999,2]
[333234850,1721959839365,-885.41,0.00010999,2]
[333234851,1721959839374,-885.41,0.00010999,2]
[333234852,1721959839383,-885.41,0.00010999,2]
[333234853,1721959839392,-507.25978855,0.00010999,2]
[333234854,1721959839401,-885.41,0.00010999,2]
[333234855,1721959839410,-885.41,0.00010999,2]
[333234856,1721959839421,-394.82676503,0.00010999,2]
[333234857,1721959839432,-885.41,0.00010999,2]
[333234858,1721959839441,-885.57,0.00010999,2]
[333234859,1721959839451,-1398.35,0.00010999,2]
[333234860,1721959839460,-1398.35,0.00010999,2]
[333234861,1721959839470,-1398.35,0.00010999,2]
[333234862,1721959839479,-1398.35,0.00010999,2]
[333234863,1721959839488,-1398.35,0.00010999,2]
[333234864,1721959839497,-1398.35,0.00010999,2]
[333234865,1721959839506,-1398.35,0.00010999,2]
[333234866,1721959839516,-1398.35,0.00010999,2]
[333234867,1721959839525,-1398.35,0.00010999,2]
[333234868,1721959839535,-1398.35,0.00010999,2]
[333234869,1721959839544,-1398.35,0.00010999,2]
[333234870,1721959839555,-1398.35,0.00010999,2]
[333234871,1721959839564,-1398.35,0.00010999,2]
[333234872,1721959839574,-1398.35,0.00010999,2]
[333234873,1721959839584,-1398.35,0.00010999,2]
[333234874,1721959839594,-1398.35,0.00010999,2]
[333234875,1721959839604,-1398.35,0.00010999,2]
[333234876,1721959839615,-1398.35,0.00010999,2]
[333234877,1721959839626,-1398.35,0.00010999,2]
[333234878,1721959839637,-1398.35,0.00010999,2]
[333234879,1721959839647,-1398.35,0.00010999,2]
[333234880,1721959839659,-1398.35,0.00010999,2]
[333234881,1721959839668,-1398.35,0.00010999,2]
[333234882,1721959839678,-1398.55970282,0.00010999,2]
[333234883,1721959839690,-502.77089209,0.00010999,2]
[333234884,1721959839699,-513.33852453,0.00010999,2]
[333234885,1721959839710,-504.8861664,0.00010999,2]
[333234886,1721959839719,-519.98893639,0.00010999,2]
[333234887,1721959839728,-507.98228585,0.00010999,2]
[333234888,1721959839738,-500.0,0.00010999,2]
[333234889,1721959839748,-500.0,0.00010999,2]
[333234890,1721959839757,-493.65915637,0.00010999,2]
[333234891,1721959839767,-502.18424619,0.00010999,2]
[333234892,1721959839776,-517.26603314,0.00010999,2]
[333234893,1721959839785,-500.0,0.00010999,2]
[333234894,1721959839795,-633.28591453,0.00010999,2]
[333234895,1721959839805,-1723.97,0.00010999,2]
[333234896,1721959839815,-1723.97,0.00010999,2]
[333234897,1721959839825,-1723.97,0.00010999,2]
[333234898,1721959839836,-1723.97,0.00010999,2]
[333234899,1721959839846,-1723.97,0.00010999,2]
[333234900,1721959839856,-1723.97,0.00010999,2]
[333234901,1721959839865,-1723.97,0.00010999,2]
[333234902,1721959839875,-1723.97,0.00010999,2]
[333234903,1721959839887,-1723.97,0.00010999,2]
[333234904,1721959839898,-1723.97,0.00010999,2]
[333234905,1721959839907,-1723.97,0.00010999,2]
[333234906,1721959839917,-1723.97,0.00010999,2]
[333234907,1721959839927,-1723.97,0.00010999,2]
[333234908,1721959839936,-1723.97,0.00010999,2]
[333234909,1721959839946,-1723.97,0.00010999,2]
[333234910,1721959839956,-1723.97,0.00010999,2]
[333234911,1721959839967,-1723.97,0.00010999,2]
[333234912,1721959839977,-1723.97,0.00010999,2]
[333234913,1721959839986,-1723.97,0.00010999,2]
[333234914,1721959839996,-1723.97,0.00010999,2]
[333234915,1721959840005,-1723.97,0.00010999,2]
[333234916,1721959840014,-1723.97,0.00010999,2]
[333234917,1721959840024,-1723.97497327,0.00010999,2]
[333234918,1721959840032,-114920.04774162,0.00011,2]
[333234919,1721959840042,-268.86,0.00011,2]
[333234920,1721959840051,-774231.25680959,0.00011,2]
[333234921,1721959840064,-297.73623329,0.00011,2]
[333234922,1721959840076,-308.66866659,0.00011,2]
[333234923,1721959840851,-63967.47450047,0.00011,2]
[333234924,1721959840863,-1191.06342826,0.00011,2]
[333234925,1721959840874,-3698.49104601,0.00011,2]
[333234926,1721959840906,-256.62236691,0.00010899,2]
[333234929,1721959841231,-322.37297026,0.00010899,2]
[333234930,1721959841243,-1746.08000014,0.00010899,2]
[333234931,1721959841255,-760.74789201,0.00010899,2]
[333234932,1721959841267,-1894.99314279,0.00010899,2]
[333234933,1721959841278,-376.49704378,0.00010899,2]
[333234935,1721959843533,-8814.79099455,0.00010899,2]
[333234936,1721959843544,-13468.50437353,0.00011,2]
[333234937,1721959843559,-548.54201483,0.00011,2]
[333234940,1721959843773,-302.0,0.00011,2]
[333234943,1721959846776,-5989.63281189,0.00010899,2]
[333234944,1721959846789,-1898.86705973,0.00010899,2]
[333234945,1721959846801,-2176.89212476,0.00010899,2]
[333234946,1721959846813,-584.74,0.00010899,2]
[333234947,1721959846825,-3070.60000002,0.00010899,2]
[333234948,1721959846837,-451.37241404,0.00010899,2]
[333234949,1721959846847,-4550.29466496,0.00011,2]
[333234950,1721959846859,-8609.01591629,0.00011,2]
[333234951,1721959846871,-956.45,0.00011,2]
[333234952,1721959846883,-316.01403212,0.00011,2]
[333234959,1721961033934,-607.2,8.292e-05,2]
[333234961,1721961033943,-542.3599513,9.983e-05,2]
[333234963,1721961033953,-707.946233,9.983e-05,2]
[333234965,1721961033962,-1000.0,0.00010147,2]
[333234967,1721961033971,-250.0,0.00010185,2]
[333234970,1721961033980,-250.0,0.00010185,2]
[333234973,1721961033990,-300.0,0.00010499,2]
[333234975,1721961034000,-12803.54475498,0.000105,2]
[333234978,1721961034010,-273.22233313,0.00010556,2]
[333234994,1721961034319,-333.97766687,0.00010556,2]
[333234996,1721961034329,-216.2027,0.00010897,2]
[333234998,1721961034339,-1005.0,0.000109,2]
[333235000,1721961034349,-500.0,0.00010912,2]
[333235001,1721961034359,-189.1,0.00010959,2]
[333235002,1721961034368,-793.04,0.00010959,2]
[333235003,1721961034379,-5795.48,0.00010959,2]
[333235004,1721961034389,-2689.903,0.0001097,2]
[333235005,1721961034398,-373.315,0.0001097,2]
[333235006,1721961034408,-9410.95188216,0.00010997,2]
[333235007,1721961034418,-114113.71751924,0.00011,2]
[333235008,1721961034428,-227721.8795436,0.00011,2]
[333235009,1721961034440,-9682.54183159,0.00011,2]
[333235019,1721961039259,-1738.34214563,0.00011,2]
[333235020,1721961039271,-1005.96950812,0.00011,2]
[333235021,1721961039589,-764.2419324,0.00011,2]
[333235022,1721961039601,-26468.83093968,0.00011,2]
[333235023,1721961039613,-340.31198498,0.00011,2]
[333235024,1721961039624,-1577.34555976,0.00011,2]
[333235025,1721961039635,-802.6997,0.00011,2]
[333235026,1721961039647,-234151.13764787,0.00011,2]
[333235051,1721961040661,-960.10966501,0.00011,2]
[333235053,1721961040673,-5859.33696734,0.00011,2]
[333235054,1721961040685,-731.17635156,0.00011,2]
[333235056,1721961040697,-703.9999999,0.00011,2]
[333235058,1721961040708,-2999.76536788,0.00011,2]
[333235060,1721961040719,-965.50999999,0.00011,2]
[333235063,1721961040731,-528.88069641,0.00011,2]
[333235068,1721961040781,-1247.19195163,0.00011,2]
[333235071,1721961042136,-395.48039178,0.00010999,2]
[333235072,1721961042148,-147.85845681,0.00010999,2]
[333235073,1721961042158,-615.6215432,0.00011,2]
[333235074,1721961042169,-574.03358918,0.00011,2]
[333235075,1721961042180,-730.07124766,0.00011,2]
[333235076,1721961042191,-555.6075652,0.00011,2]
[333235077,1721961042207,-6047.11820838,0.00011,2]
[333235078,1721961042266,-500.0,0.00010999,2]
[333235079,1721961042275,-6672.93679144,0.00011,2]
[333235080,1721961042288,-547.52749393,0.00011,2]
[333235081,1721961042302,-1489.433276,0.00011,2]
[333235087,1721961043946,-500.0,0.00010998,2]
[333235088,1721961043955,-313.50302583,0.00010999,2]
[333235089,1721961043966,-186.49697417,0.00010999,2]
[333235090,1721961043975,-500.0,0.00010999,2]
[333235092,1721961043984,-337.32619664,0.00010999,2]
[333235094,1721961043995,-162.67380336,0.00010999,2]
[333235095,1721961044004,-138.94219664,0.00010999,2]
[333235097,1721961044016,-321.84548816,0.00010999,2]
[333235099,1721961044027,-39.2123152,0.00010999,2]
[333235101,1721961044036,-500.0,0.00010999,2]
[333235103,1721961044048,-203.59,0.00010999,2]
[333235105,1721961044057,-601373.74143434,0.00011,2]
[333235107,1721961044068,-559.40606601,0.00011,2]
[333235110,1721961044098,-500.0,0.00010999,2]
[333235112,1721961044107,-43057.94634624,0.00011,2]
[333235114,1721961044118,-328.7496445,0.00011,2]
[333235116,1721961044129,-1747.575,0.00011,2]
[333235118,1721961044140,-382551.15528427,0.00011,2]
[333235120,1721961044151,-294.248398,0.00011,2]
[333235122,1721961044162,-333.71131815,0.00011,2]
[333235124,1721961044173,-1234.05111663,0.00011,2]
[333235126,1721961044185,-840.64392545,0.00011,2]
[333235128,1721961044200,-8212.32735719,0.00011,2]
[333235130,1721961044212,-343.95649818,0.00011,2]
[333235133,1721961044228,-54455.79681227,0.00011,2]
[333235200,1721961046558,-302.24269716,0.00010998,2]
[333235202,1721961046570,-324.09669303,0.00010998,2]
[333235204,1721961046579,-47.44876883,0.00010999,2]
[333235217,1721961046696,-452.55123117,0.00010999,2]
[333235219,1721961046706,-500.0,0.00010999,2]
[333235220,1721961046715,-430.85734134,0.00010999,2]
[333235242,1721961047614,-69.14265866,0.00010999,2]
[333235243,1721961047624,-500.0,0.00010999,2]
[333235244,1721961047633,-500.0,0.00010999,2]
[333235245,1721961047644,-527.32096141,0.00010999,2]
[333235246,1721961047655,-410.28293619,0.00010999,2]
[333235247,1721961047675,-89.71706381,0.00010999,2]
[333235248,1721961047685,-500.0,0.00010999,2]
[333235249,1721961047694,-500.0,0.00010999,2]
[333235250,1721961047703,-500.0,0.00010999,2]
[333235251,1721961047713,-500.0,0.00010999,2]
[333235252,1721961047722,-500.0,0.00010999,2]
[333235253,1721961047731,-516.57454893,0.00010999,2]
[333235254,1721961047741,-500.0,0.00010999,2]
[333235255,1721961047751,-10631.08418815,0.00011,2]
[333235256,1721961047762,-1313.87865291,0.00011,2]
[333235257,1721961047774,-1462.76416002,0.00011,2]
[333235258,1721961047785,-965.67310857,0.00011,2]
[333235259,1721961047796,-2372.81520537,0.00011,2]
[333235260,1721961047811,-7577.95174204,0.00011,2]
[333235261,1721961047822,-1774.86208729,0.00011,2]
[333235262,1721961047834,-6608.37094698,0.00011,2]
[333235263,1721961047845,-6000.0,0.00011,2]
[333235264,1721961047857,-2227.25868997,0.00011,2]
[333235265,1721961047868,-33869.41821226,0.00011,2]
[333235266,1721961047879,-327.39960131,0.00011,2]
[333235267,1721961047890,-824.59977352,0.00011,2]
[333235268,1721961047900,-25492.68481151,0.00011,2]
[333235269,1721961047911,-2497.79507697,0.00011,2]
[333235270,1721961047924,-806.25,0.00011,2]
[333235271,1721961047935,-6844.12181797,0.00011,2]
[333235272,1721961047947,-7511.43041172,0.00011,2]
[333235273,1721961047958,-1002.44274149,0.00011,2]
[333235274,1721961047970,-11173.27156439,0.00011,2]
[333235275,1721961047981,-375.76220257,0.00011,2]
[333235276,1721961048040,-500.0,0.00010999,2]
[333235277,1721961048055,-500.0,0.00010999,2]
[333235278,1721961048065,-978.11193598,0.00011,2]
[333235279,1721961259181,316.493652,0.00015,30]
[333235280,1721961870766,150.0,0.00015,30]
[333235282,1721961968921,284.75185433,0.000162,120]
[333235287,1721962234154,-568.13636904,8.219e-05,2]
[333235288,1721962234167,-86.56363096,8.219e-05,2]
[333235289,1721962234177,-876.11397054,9.678e-05,2]
[333235290,1721962234193,-657.29628893,9.678e-05,2]
[333235291,1721962234205,-487.65931293,9.678e-05,2]
[333235292,1721962234218,-2443.1504276,9.678e-05,2]
[333235293,1721962234228,-2000.0,9.722e-05,2]
[333235294,1721962234238,-250.0,9.75e-05,2]
[333235295,1721962234249,-171.47,9.79e-05,2]
[333235296,1721962234265,-200.0,9.818e-05,2]
[333235297,1721962234275,-300.0,9.9e-05,3]
[333235298,1721962234286,-150.0,9.973e-05,2]
[333235299,1721962234297,-600.0,0.0001,3]
[333235300,1721962234307,-900.0,0.000101,3]
[333235301,1721962234317,-301.33,0.00010199,2]
[333235302,1721962234327,-1200.0,0.000102,3]
[333235303,1721962234336,-1500.0,0.000103,3]
[333235304,1721962234346,-300.0,0.000104,3]
[333235305,1721962234357,-304.89164377,0.00010431,2]
[333235306,1721962234367,-654.7,0.00010462,2]
[333235307,1721962234377,-300.0,0.000105,3]
[333235308,1721962234390,-300.0,0.000106,3]
[333235309,1721962234400,-300.0,0.000107,3]
[333235310,1721962234410,-190.5585,0.00010715,2]
[333235311,1721962234420,-269.936,0.00010799,2]
[333235312,1721962234429,-400.0,0.000108,3]
[333235313,1721962234439,-3305.72678109,0.00010889,2]
[333235314,1721962234449,-3000.0,0.0001089,2]
[333235315,1721962234459,-36895.58495367,0.00010899,2]
[333235316,1721962234469,-36895.5849536,0.00010899,2]
[333235317,1721962234479,-36895.5849536,0.00010899,2]
[333235318,1721962234490,-36895.5849536,0.00010899,2]
[333235321,1721962234501,-36895.5849536,0.00010899,2]